{"text_format":"1","workbook":"xlsx","n_sheets":2,"sheets":["Sheet1","Sheet2"],"not_rendered":{"charts":0,"images":0,"macros":1,"external_links":0,"defined_names":0,"comments":0,"pivot_tables":0},"unopened":[],"bounds":{"document_bytes":16777216,"sheet_cells":100000,"rows_first":2000,"rows_last":500,"rows_between":2000,"halvings":0,"cell_chars":16384,"cell_head_chars":4096},"cells_cut":0,"cells_raw":0,"read":"whole","date_system":"1900"}

{"sheet":"Sheet1","index":0,"n_rows":12,"n_cols":6,"rows_kept":12,"cut":false,"hidden":false,"merged":[]}
[]
[null,"Candidate Name","Marks in Written","Marks in Viva","Average Marks","Recommendation"]
[null,"Jonathon Root",73,62,{"$f":"AVERAGE(C3:D3)","v":67.5},{"$f":"IF(E3>=60,\"Selected\",\"Not Selected\")","v":"Selected"}]
[null,"Angelo Mathews",37,31,{"$f":"AVERAGE(C4:D4)","v":34},{"$f":"IF(E4>=60,\"Selected\",\"Not Selected\")","v":"Not Selected"}]
[null,"Steve Smith",45,53,49,"Not Selected"]
[null,"Richard Hopkins",61,45,53,"Not Selected"]
[null,"Steve Smith",47,78,62.5,"Selected"]
[null,"Frank Orwell",47,45,46,"Not Selected"]
[null,"Craig Arvin",30,84,57,"Not Selected"]
[null,"Natalia Austin",47,33,40,"Not Selected"]
[null,"Jennifer Marlo",43,58,50.5,"Not Selected"]
[null,"Roger Harbart",49,98,73.5,"Selected"]

{"sheet":"Sheet2","index":1,"n_rows":12,"n_cols":6,"rows_kept":12,"cut":false,"hidden":false,"merged":[]}
[]
[null,"Candidate Name","Marks in Written","Marks in Viva","Average Marks","Recommendation"]
[null,null,73,62,{"$f":"AVERAGE(C3:D3)","v":67.5},{"$f":"IF(E3>=60,\"Selected\",\"Not Selected\")","v":"Selected"}]
[null,null,37,31,{"$f":"AVERAGE(C4:D4)","v":34},{"$f":"IF(E4>=60,\"Selected\",\"Not Selected\")","v":"Not Selected"}]
[null,null,45,53,49,"Not Selected"]
[null,null,61,45,53,"Not Selected"]
[null,null,47,78,62.5,"Selected"]
[null,null,47,45,46,"Not Selected"]
[null,null,30,84,57,"Not Selected"]
[null,null,47,33,40,"Not Selected"]
[null,null,43,58,50.5,"Not Selected"]
[null,null,49,98,73.5,"Selected"]